fUST/lending_fUST_20240121
["ID","MTS","AMOUNT","RATE_DAILY","PERIOD"]
[312378774,1705846244240,-500.0,0.00027671,2]
[312378775,1705846244249,-500.0,0.00027671,2]
[312378776,1705846244258,-8011.52,0.00027671,2]
[312378777,1705846244268,-459.96835433,0.00027671,2]
[312378778,1705846244276,-578.89876639,0.00027671,2]
[312378779,1705846244286,-1832.27,0.00027671,2]
[312378780,1705846244294,-250.97839217,0.00027671,2]
[312378781,1705846244304,-500.0,0.00027671,2]
[312378782,1705846244313,-1508.03,0.00027671,2]
[312378783,1705846244322,-2078.04,0.00027671,2]
[312378784,1705846244331,-500.0,0.00027671,2]
[312378785,1705846244340,-500.0,0.00027671,2]
[312378786,1705846244349,-500.0,0.00027671,2]
[312378787,1705846244359,-618.48,0.00027671,2]
[312378788,1705846244368,-500.0,0.00027671,2]
[312378789,1705846244377,-500.0,0.00027671,2]
[312378790,1705846244385,-2722.27,0.00027671,2]
[312378791,1705846244396,-1106.82,0.00027671,2]
[312378792,1705846244405,-500.0,0.00027671,2]
[312378793,1705846244414,-163.68735223,0.00027689,2]
[312378794,1705846244423,-631.18376478,0.0002772,2]
[312378795,1705846244432,-762.19754375,0.00027824,2]
[312378796,1705846244441,-4585.6258218,0.00027924,4]
[312378797,1705846244450,-5000.0,0.00027924,5]
[312378798,1705846244459,-3307.62084991,0.00027924,4]
[312378799,1705846244469,-50000.0,0.00027924,5]
[312378800,1705846244478,-99186.78455007,0.00027924,5]
[312378801,1705846244487,-154.18654107,0.00027924,3]
[312378802,1705846244495,-381.25968954,0.00027943,4]
[312378803,1705846244504,-535.90514893,0.00027943,4]
[312378804,1705846244513,-500.0,0.00027943,4]
[312378805,1705846244523,-500.0,0.00027943,4]
[312378806,1705846244531,-500.0,0.00027943,4]
[312378807,1705846244540,-181.01149076,0.00027943,4]
[312378808,1705846244549,-500.0,0.00027943,4]
[312378809,1705846244559,-500.0,0.00027943,4]
[312378810,1705846244567,-430.69114226,0.00027943,4]
[312378811,1705846244577,-500.0,0.00027943,4]
[312378812,1705846244586,-569.4305536,0.00027943,4]
[312378813,1705846244595,-580.06278249,0.00027943,4]
[312378814,1705846244604,-500.0,0.00027943,4]
[312378815,1705846244614,-500.0,0.00027943,4]
[312378816,1705846244623,-500.0,0.00027943,4]
[312378817,1705846244632,-500.0,0.00027943,4]
[312378818,1705846244642,-500.0,0.00027945,2]
[312378819,1705846244651,-500.0,0.00027945,2]
[312378820,1705846244660,-500.0,0.00027945,2]
[312378821,1705846244670,-500.0,0.00027945,2]
[312378822,1705846244679,-500.0,0.00027945,2]
[312378823,1705846244688,-500.0,0.00027945,2]
[312378824,1705846244696,-488.04280479,0.00027945,2]
[312378825,1705846244706,-500.0,0.00027945,2]
[312378826,1705846244715,-500.0,0.00027945,2]
[312378827,1705846244724,-655.79,0.00027945,2]
[312378828,1705846244733,-772.78,0.00027945,2]
[312378829,1705846244742,-500.0,0.00027945,2]
[312378830,1705846244751,-500.0,0.00027945,2]
[312378831,1705846244761,-500.0,0.00027945,2]
[312378832,1705846244769,-500.0,0.00027945,2]
[312378833,1705846244778,-758.08,0.00027945,2]
[312378834,1705846244787,-500.0,0.00027945,2]
[312378835,1705846244797,-500.0,0.00027945,2]
[312378836,1705846244806,-500.0,0.00027945,2]
[312378837,1705846244815,-500.0,0.00027945,2]
[312378838,1705846244824,-500.0,0.00027945,2]
[312378839,1705846244833,-500.0,0.00027945,2]
[312378840,1705846244842,-839.95,0.00027945,2]
[312378841,1705846244851,-500.0,0.00027945,2]
[312378842,1705846244860,-574.78,0.00027945,2]
[312378843,1705846244869,-500.0,0.00027945,2]
[312378844,1705846244879,-500.0,0.00027945,2]
[312378845,1705846244888,-500.0,0.00027945,2]
[312378846,1705846244897,-931.6,0.00027945,2]
[312378847,1705846244906,-500.0,0.00027945,2]
[312378848,1705846244915,-500.0,0.00027945,2]
[312378849,1705846244925,-500.0,0.00027945,2]
[312378850,1705846244937,-243.80797857,0.00027945,2]
[312378851,1705846244946,-546.07773803,0.00027945,2]
[312378852,1705846244954,-500.0,0.00027945,2]
[312378853,1705846244964,-500.0,0.00027945,2]
[312378854,1705846244973,-500.0,0.00027945,2]
[312378855,1705846244982,-500.0,0.00027945,2]
[312378856,1705846244991,-500.0,0.00027945,2]
[312378857,1705846245000,-500.0,0.00027945,2]
[312378858,1705846245010,-500.0,0.00027945,2]
[312378859,1705846245020,-593.06,0.00027945,2]
[312378860,1705846245029,-500.0,0.00027945,2]
[312378861,1705846245038,-500.0,0.00027945,2]
[312378862,1705846245047,-500.0,0.00027945,2]
[312378863,1705846245056,-500.0,0.00027945,2]
[312378864,1705846245065,-1000.0,0.00027945,2]
[312378865,1705846245074,-511.9,0.00027945,2]
[312378866,1705846245083,-627.16,0.00027945,2]
[312378867,1705846245093,-2114.7,0.00027945,2]
[312378868,1705846245103,-731.86,0.00027945,2]
[312378869,1705846245112,-500.0,0.00027945,2]
[312378870,1705846245121,-500.0,0.00027945,2]
[312378871,1705846245131,-500.0,0.00027945,2]
[312378872,1705846245140,-500.0,0.00027945,2]
[312378873,1705846245149,-500.0,0.00027945,2]
[312378874,1705846245158,-1089.61,0.00027945,2]
[312378875,1705846245168,-500.0,0.00027945,2]
[312378876,1705846245178,-556.03,0.00027945,2]
[312378877,1705846245187,-500.0,0.00027945,2]
[312378878,1705846245196,-500.0,0.00027945,2]
[312378879,1705846245206,-500.0,0.00027945,2]
[312378880,1705846245214,-500.0,0.00027945,2]
[312378881,1705846245224,-500.0,0.00027945,2]
[312378882,1705846245339,-500.0,0.00027945,2]
[312378883,1705846245350,-500.0,0.00027945,2]
[312378884,1705846245359,-500.0,0.00027945,2]
[312378885,1705846245368,-642.51467487,0.00027945,2]
[312378886,1705846245377,-500.0,0.00027945,2]
[312378887,1705846245387,-500.0,0.00027945,2]
[312378888,1705846245396,-510.28,0.00027945,2]
[312378889,1705846245405,-500.0,0.00027945,2]
[312378890,1705846245414,-500.0,0.00027945,2]
[312378891,1705846245427,-500.0,0.00027945,2]
[312378892,1705846245437,-500.0,0.00027945,2]
[312378893,1705846245446,-500.0,0.00027945,2]
[312378894,1705846245455,-388.68371797,0.00027945,2]
[312378895,1705846245464,-500.0,0.00027945,2]
[312378896,1705846245473,-500.0,0.00027945,2]
[312378897,1705846245482,-500.0,0.00027945,2]
[312378898,1705846245491,-850.61,0.00027945,2]
[312378899,1705846245500,-724.72,0.00027945,2]
[312378900,1705846245510,-500.0,0.00027945,2]
[312378901,1705846245519,-500.0,0.00027945,2]
[312378902,1705846245528,-1596.49,0.00027945,2]
[312378903,1705846245538,-500.0,0.00027945,2]
[312378904,1705846245547,-500.0,0.00027945,2]
[312378905,1705846245556,-500.0,0.00027945,2]
[312378906,1705846245565,-500.0,0.00027945,2]
[312378907,1705846245574,-620.44,0.00027945,2]
[312378908,1705846245583,-500.0,0.00027945,2]
[312378909,1705846245592,-500.0,0.00027945,2]
[312378910,1705846245601,-500.0,0.00027945,2]
[312378911,1705846245609,-500.0,0.00027945,2]
[312378912,1705846245619,-680.52345501,0.00027945,2]
[312378913,1705846245779,-31.36654499,0.00027945,2]
[312378914,1705846245789,-500.0,0.00027945,2]
[312378915,1705846245798,-771.58,0.00027945,2]
[312378917,1705846245807,-629.3,0.00027945,2]
[312378919,1705846245817,-504.37,0.00027945,2]
[312378921,1705846245826,-644.9,0.00027945,2]
[312378924,1705846245835,-5701.29,0.00027945,2]
[312378925,1705846245844,-729.87,0.00027945,2]
[312378927,1705846245853,-690.17297789,0.00027945,2]
[312378930,1705846245865,-148.55702211,0.00027945,2]
[312378932,1705846245874,-607.21258544,0.00027945,2]
[312378934,1705846245883,-555.83,0.00027945,2]
[312378935,1705846245892,-500.0,0.00027945,2]
[312378936,1705846245902,-191.70318392,0.00027945,2]
[312378937,1705846245910,-500.0,0.00027945,2]
[312378938,1705846245919,-500.0,0.00027945,2]
[312378939,1705846246138,-746.75,0.00027945,2]
[312378940,1705846246148,-23445.56,0.00027945,2]
[312378942,1705846246158,-500.0,0.00027945,2]
[312378943,1705846246167,-2387.11,0.00027945,2]
[312378944,1705846246177,-500.0,0.00027945,2]
[312378945,1705846246186,-1908.34,0.00027945,2]
[312378946,1705846246195,-500.0,0.00027945,2]
[312378947,1705846246205,-579.56324903,0.00027945,2]
[312378948,1705846246214,-500.0,0.00027945,2]
[312378949,1705846246224,-918.45,0.00027945,2]
[312378950,1705846246233,-1820.35,0.00027945,2]
[312378951,1705846246243,-500.0,0.00027945,2]
[312378952,1705846246252,-500.0,0.00027945,2]
[312378953,1705846246262,-1385.6,0.00027945,2]
[312378954,1705846246271,-500.0,0.00027945,2]
[312378955,1705846246280,-171.16187186,0.00027945,2]
[312378956,1705846246290,-500.0,0.00027945,2]
[312378957,1705846246299,-1085.7,0.00027945,2]
[312378958,1705846246309,-500.0,0.00027945,2]
[312378959,1705846246318,-500.0,0.00027945,2]
[312378960,1705846246327,-500.0,0.00027945,2]
[312378961,1705846246336,-1300.84,0.00027945,2]
[312378962,1705846246345,-500.0,0.00027945,2]
[312378963,1705846246355,-500.0,0.00027945,2]
[312378964,1705846246365,-1212.07,0.00027945,2]
[312378965,1705846246375,-14451.48,0.00027945,2]
[312378966,1705846246384,-8985.4,0.00027945,2]
[312378967,1705846246394,-3009.28,0.00027945,2]
[312378968,1705846246403,-8616.53,0.00027945,2]
[312378969,1705846246412,-992.85,0.00027945,2]
[312378970,1705846246421,-500.0,0.00027945,2]
[312378971,1705846246430,-1249.83,0.00027945,2]
[312378972,1705846246440,-500.0,0.00027945,2]
[312378973,1705846246449,-500.0,0.00027945,2]
[312378974,1705846246458,-2116.25,0.00027945,2]
[312378975,1705846246468,-4039.22,0.00027945,2]
[312378976,1705846246477,-5986.27,0.00027945,2]
[312378977,1705846246486,-571.94,0.00027945,2]
[312378978,1705846246495,-500.0,0.00027945,2]
[312378979,1705846246504,-500.0,0.00027945,2]
[312378981,1705846246513,-8011.52,0.00027945,2]
[312378983,1705846246523,-1832.27,0.00027945,2]
[312378986,1705846246532,-500.0,0.00027945,2]
[312378988,1705846246542,-1508.03,0.00027945,2]
[312378990,1705846246550,-2078.04,0.00027945,2]
[312378992,1705846246560,-500.0,0.00027945,2]
[312378994,1705846246569,-500.0,0.00027945,2]
[312378997,1705846246578,-500.0,0.00027945,2]
[312378998,1705846246586,-618.48,0.00027945,2]
[312378999,1705846246595,-500.0,0.00027945,2]
[312379000,1705846246605,-500.0,0.00027945,2]
[312379001,1705846246614,-2722.27,0.00027945,2]
[312379002,1705846246624,-1106.82,0.00027945,2]
[312379003,1705846246634,-500.0,0.00027945,2]
[312379004,1705846246645,-290.23210975,0.00028,2]
[312379005,1705846246654,-277.23266737,0.00028,2]
[312379006,1705846246664,-502.27687519,0.00028219,2]
[312379007,1705846246673,-500.0,0.00028219,2]
[312379008,1705846246683,-500.0,0.00028219,2]
[312379009,1705846246692,-500.0,0.00028219,2]
[312379011,1705846246701,-500.0,0.00028219,2]
[312379013,1705846246710,-500.0,0.00028219,2]
[312379014,1705846246719,-500.0,0.00028219,2]
[312379016,1705846246728,-500.0,0.00028219,2]
[312379017,1705846246738,-655.79,0.00028219,2]
[312379018,1705846246747,-772.78,0.00028219,2]
[312379019,1705846246757,-500.0,0.00028219,2]
[312379020,1705846246766,-500.0,0.00028219,2]
[312379021,1705846246775,-500.0,0.00028219,2]
[312379022,1705846246784,-758.08,0.00028219,2]
[312379023,1705846246794,-500.0,0.00028219,2]
[312379024,1705846246803,-500.0,0.00028219,2]
[312379025,1705846246812,-500.0,0.00028219,2]
[312379026,1705846246821,-500.0,0.00028219,2]
[312379027,1705846246830,-500.0,0.00028219,2]
[312379028,1705846246839,-500.0,0.00028219,2]
[312379029,1705846246848,-839.95,0.00028219,2]
[312379031,1705846246858,-500.0,0.00028219,2]
[312379033,1705846246867,-574.78,0.00028219,2]
[312379035,1705846246876,-500.0,0.00028219,2]
[312379037,1705846246886,-500.0,0.00028219,2]
[312379038,1705846246895,-500.0,0.00028219,2]
[312379040,1705846246905,-931.6,0.00028219,2]
[312379042,1705846246914,-500.0,0.00028219,2]
[312379044,1705846246923,-500.0,0.00028219,2]
[312379046,1705846246934,-500.0,0.00028219,2]
[312379048,1705846246945,-516.43736873,0.00028219,2]
[312379049,1705846246954,-500.0,0.00028219,2]
[312379051,1705846246964,-500.0,0.00028219,2]
[312379052,1705846246974,-500.0,0.00028219,2]
[312379053,1705846246983,-500.0,0.00028219,2]
[312379054,1705846246993,-500.0,0.00028219,2]
[312379055,1705846247002,-500.0,0.00028219,2]
[312379056,1705846247012,-593.06,0.00028219,2]
[312379057,1705846247023,-500.0,0.00028219,2]
[312379058,1705846247034,-500.0,0.00028219,2]
[312379059,1705846247043,-500.0,0.00028219,2]
[312379060,1705846247053,-500.0,0.00028219,2]
[312379061,1705846247062,-1000.0,0.00028219,2]
[312379062,1705846247072,-511.9,0.00028219,2]
[312379063,1705846247081,-627.16,0.00028219,2]
[312379064,1705846247091,-2114.7,0.00028219,2]
[312379065,1705846247100,-731.86,0.00028219,2]
[312379066,1705846247109,-500.0,0.00028219,2]
[312379067,1705846247118,-500.0,0.00028219,2]
[312379068,1705846247128,-500.0,0.00028219,2]
[312379069,1705846247137,-500.0,0.00028219,2]
[312379070,1705846247147,-513.67630962,0.00028219,2]
[312379071,1705846247156,-1089.61,0.00028219,2]
[312379072,1705846247165,-500.0,0.00028219,2]
[312379073,1705846247175,-556.03,0.00028219,2]
[312379074,1705846247184,-500.0,0.00028219,2]
[312379075,1705846247194,-500.0,0.00028219,2]
[312379076,1705846247205,-500.0,0.00028219,2]
[312379077,1705846247214,-500.0,0.00028219,2]
[312379078,1705846247223,-500.0,0.00028219,2]
[312379079,1705846247233,-500.0,0.00028219,2]
[312379080,1705846247243,-500.0,0.00028219,2]
[312379081,1705846247253,-500.0,0.00028219,2]
[312379082,1705846247263,-500.0,0.00028219,2]
[312379083,1705846247272,-500.0,0.00028219,2]
[312379084,1705846247281,-510.28,0.00028219,2]
[312379085,1705846247291,-500.0,0.00028219,2]
[312379086,1705846247300,-500.0,0.00028219,2]
[312379087,1705846247309,-500.0,0.00028219,2]
[312379088,1705846247318,-500.0,0.00028219,2]
[312379089,1705846247327,-500.0,0.00028219,2]
[312379090,1705846247336,-500.0,0.00028219,2]
[312379091,1705846247345,-850.61,0.00028219,2]
[312379092,1705846247354,-724.72,0.00028219,2]
[312379093,1705846247365,-500.0,0.00028219,2]
[312379094,1705846247375,-500.0,0.00028219,2]
[312379095,1705846247384,-1596.49,0.00028219,2]
[312379096,1705846247393,-500.0,0.00028219,2]
[312379097,1705846247402,-500.0,0.00028219,2]
[312379098,1705846247411,-270.22224209,0.00028219,2]
[312379099,1705846247421,-500.0,0.00028219,2]
[312379100,1705846247430,-620.44,0.00028219,2]
[312379101,1705846247439,-500.0,0.00028219,2]
[312379102,1705846247448,-500.0,0.00028219,2]
[312379103,1705846247458,-500.0,0.00028219,2]
[312379104,1705846247467,-500.0,0.00028219,2]
[312379105,1705846247476,-711.89,0.00028219,2]
[312379106,1705846247485,-500.0,0.00028219,2]
[312379107,1705846247494,-771.58,0.00028219,2]
[312379108,1705846247503,-629.3,0.00028219,2]
[312379109,1705846247512,-504.37,0.00028219,2]
[312379110,1705846247521,-644.9,0.00028219,2]
[312379111,1705846247530,-5701.29,0.00028219,2]
[312379112,1705846247539,-729.87,0.00028219,2]
[312379113,1705846247548,-838.73,0.00028219,2]
[312379114,1705846247557,-555.83,0.00028219,2]
[312379115,1705846247566,-500.0,0.00028219,2]
[312379116,1705846247576,-500.0,0.00028219,2]
[312379117,1705846247584,-500.0,0.00028219,2]
[312379118,1705846247594,-746.75,0.00028219,2]
[312379119,1705846247603,-23445.56,0.00028219,2]
[312379120,1705846247612,-500.0,0.00028219,2]
[312379121,1705846247621,-2387.11,0.00028219,2]
[312379122,1705846247630,-334.34482967,0.00028219,2]
[312379123,1705846247640,-1908.34,0.00028219,2]
[312379124,1705846247649,-500.0,0.00028219,2]
[312379125,1705846247658,-500.0,0.00028219,2]
[312379126,1705846247672,-918.45,0.00028219,2]
[312379127,1705846247681,-1820.35,0.00028219,2]
[312379128,1705846247689,-500.0,0.00028219,2]
[312379129,1705846247699,-200.80876799,0.00028219,2]
[312379130,1705846247708,-1385.6,0.00028219,2]
[312379131,1705846247717,-500.0,0.00028219,2]
[312379132,1705846247726,-500.0,0.00028219,2]
[312379133,1705846247735,-1085.7,0.00028219,2]
[312379134,1705846247744,-500.0,0.00028219,2]
[312379135,1705846247753,-500.0,0.00028219,2]
[312379136,1705846247762,-310.73024265,0.00028219,2]
[312379137,1705846247771,-1300.84,0.00028219,2]
[312379138,1705846247780,-500.0,0.00028219,2]
[312379139,1705846247791,-580.5625675,0.00028219,2]
[312379140,1705846247800,-1212.07,0.00028219,2]
[312379141,1705846247812,-14451.48,0.00028219,2]
[312379142,1705846247821,-8985.4,0.00028219,2]
[312379143,1705846247830,-3009.28,0.00028219,2]
[312379144,1705846247840,-8616.53,0.00028219,2]
[312379145,1705846247851,-992.85,0.00028219,2]
[312379146,1705846247861,-500.0,0.00028219,2]
[312379147,1705846247871,-1249.83,0.00028219,2]
[312379148,1705846247882,-500.0,0.00028219,2]
[312379149,1705846247892,-263.76446856,0.00028219,2]
[312379150,1705846247902,-2116.25,0.00028219,2]
[312379151,1705846247912,-4039.22,0.00028219,2]
[312379152,1705846247922,-5986.27,0.00028219,2]
[312379153,1705846247933,-571.94,0.00028219,2]
[312379154,1705846247944,-500.0,0.00028219,2]
[312379155,1705846247954,-239.29179191,0.00028219,2]
[312379156,1705846247963,-8011.52,0.00028219,2]
[312379157,1705846247973,-1832.27,0.00028219,2]
[312379158,1705846247982,-500.0,0.00028219,2]
[312379159,1705846247991,-2078.04,0.00028219,2]
[312379160,1705846248113,-1508.03,0.00028219,2]
[312379161,1705846248123,-500.0,0.00028219,2]
[312379162,1705846248132,-500.0,0.00028219,2]
[312379163,1705846248141,-461.06310589,0.00028219,2]
[312379164,1705846248151,-618.48,0.00028219,2]
[312379165,1705846248160,-500.0,0.00028219,2]
[312379166,1705846248169,-500.0,0.00028219,2]
[312379167,1705846248178,-2722.27,0.00028219,2]
[312379168,1705846248188,-1106.82,0.00028219,2]
[312379169,1705846248197,-500.0,0.00028219,2]
[312379170,1705846248206,-151.0,0.00028493,2]
[312379171,1705846248215,-151.0,0.00028493,2]
[312379172,1705846248224,-500.0,0.00028493,2]
[312379173,1705846248233,-500.0,0.00028493,2]
[312379174,1705846248242,-500.0,0.00028493,2]
[312379175,1705846248252,-500.0,0.00028493,2]
[312379176,1705846248261,-500.0,0.00028493,2]
[312379177,1705846248270,-500.0,0.00028493,2]
[312379178,1705846248279,-655.79,0.00028493,2]
[312379179,1705846248288,-772.78,0.00028493,2]
[312379180,1705846248298,-500.0,0.00028493,2]
[312379181,1705846248306,-500.0,0.00028493,2]
[312379182,1705846248316,-500.0,0.00028493,2]
[312379183,1705846248325,-758.08,0.00028493,2]
[312379184,1705846248334,-500.0,0.00028493,2]
[312379185,1705846248343,-500.0,0.00028493,2]
[312379186,1705846248352,-500.0,0.00028493,2]
[312379187,1705846248361,-500.0,0.00028493,2]
[312379188,1705846248370,-500.0,0.00028493,2]
[312379189,1705846248379,-500.0,0.00028493,2]
[312379190,1705846248389,-839.95,0.00028493,2]
[312379191,1705846248398,-500.0,0.00028493,2]
[312379192,1705846248407,-574.78,0.00028493,2]
[312379193,1705846248416,-500.0,0.00028493,2]
[312379194,1705846248425,-500.0,0.00028493,2]
[312379195,1705846248434,-500.0,0.00028493,2]
[312379196,1705846248444,-931.6,0.00028493,2]
[312379197,1705846248453,-500.0,0.00028493,2]
[312379198,1705846248462,-500.0,0.00028493,2]
[312379199,1705846248472,-500.0,0.00028493,2]
[312379200,1705846248481,-500.0,0.00028493,2]
[312379201,1705846248490,-579.61062412,0.00028493,2]
[312379202,1705846248500,-500.0,0.00028493,2]
[312379203,1705846248509,-500.0,0.00028493,2]
[312379204,1705846248519,-593.06,0.00028493,2]
[312379205,1705846248528,-500.0,0.00028493,2]
[312379206,1705846248537,-500.0,0.00028493,2]
[312379207,1705846248547,-500.0,0.00028493,2]
[312379208,1705846248556,-500.0,0.00028493,2]
[312379209,1705846248567,-1000.0,0.00028493,2]
[312379210,1705846248576,-511.9,0.00028493,2]
[312379211,1705846248585,-627.16,0.00028493,2]
[312379212,1705846248594,-2114.7,0.00028493,2]
[312379213,1705846248604,-731.86,0.00028493,2]
[312379214,1705846248615,-500.0,0.00028493,2]
[312379215,1705846248625,-500.0,0.00028493,2]
[312379216,1705846248635,-500.0,0.00028493,2]
[312379217,1705846248646,-500.0,0.00028493,2]
[312379218,1705846248656,-1089.61,0.00028493,2]
[312379219,1705846248666,-500.0,0.00028493,2]
[312379220,1705846248676,-556.03,0.00028493,2]
[312379221,1705846248685,-500.0,0.00028493,2]
[312379222,1705846248695,-500.0,0.00028493,2]
[312379223,1705846248705,-500.0,0.00028493,2]
[312379224,1705846248714,-500.0,0.00028493,2]
[312379225,1705846248724,-500.0,0.00028493,2]
[312379226,1705846248734,-218.33819214,0.00028493,2]
[312379227,1705846248744,-500.0,0.00028493,2]
[312379228,1705846248753,-500.0,0.00028493,2]
[312379229,1705846248762,-500.0,0.00028493,2]
[312379230,1705846248771,-500.0,0.00028493,2]
[312379231,1705846248781,-510.28,0.00028493,2]
[312379232,1705846248790,-512.58199465,0.00028493,2]
[312379233,1705846248799,-500.0,0.00028493,2]
[312379234,1705846248808,-500.0,0.00028493,2]
[312379235,1705846248818,-500.0,0.00028493,2]
[312379236,1705846248827,-178.74155867,0.00028493,2]
[312379237,1705846248836,-850.61,0.00028493,2]
[312379238,1705846248845,-724.72,0.00028493,2]
[312379239,1705846248854,-500.0,0.00028493,2]
[312379240,1705846248863,-406.48648431,0.00028493,2]
[312379241,1705846248872,-1596.49,0.00028493,2]
[312379242,1705846248881,-500.0,0.00028493,2]
[312379243,1705846248890,-500.0,0.00028493,2]
[312379244,1705846248899,-500.0,0.00028493,2]
[312379245,1705846248908,-620.44,0.00028493,2]
[312379246,1705846248917,-500.0,0.00028493,2]
[312379247,1705846248927,-500.0,0.00028493,2]
[312379248,1705846248939,-500.0,0.00028493,2]
[312379249,1705846248947,-500.0,0.00028493,2]
[312379250,1705846248957,-711.89,0.00028493,2]
[312379251,1705846248965,-500.0,0.00028493,2]
[312379252,1705846248974,-771.58,0.00028493,2]
[312379253,1705846248983,-629.3,0.00028493,2]
[312379254,1705846248992,-504.37,0.00028493,2]
[312379255,1705846249003,-644.9,0.00028493,2]
[312379256,1705846249012,-5701.29,0.00028493,2]
[312379257,1705846249022,-729.87,0.00028493,2]
[312379258,1705846249031,-838.73,0.00028493,2]
[312379259,1705846249041,-555.83,0.00028493,2]
[312379260,1705846249050,-500.0,0.00028493,2]
[312379261,1705846249059,-500.0,0.00028493,2]
[312379262,1705846249068,-500.0,0.00028493,2]
[312379263,1705846249078,-746.75,0.00028493,2]
[312379264,1705846249086,-23445.56,0.00028493,2]
[312379265,1705846249097,-500.0,0.00028493,2]
[312379266,1705846249106,-2387.11,0.00028493,2]
[312379267,1705846249115,-1908.34,0.00028493,2]
[312379268,1705846249124,-500.0,0.00028493,2]
[312379269,1705846249137,-500.0,0.00028493,2]
[312379270,1705846249146,-918.45,0.00028493,2]
[312379271,1705846249156,-1820.35,0.00028493,2]
[312379272,1705846249166,-500.0,0.00028493,2]
[312379273,1705846249175,-1385.6,0.00028493,2]
[312379274,1705846249185,-500.0,0.00028493,2]
[312379275,1705846249194,-500.0,0.00028493,2]
[312379276,1705846249204,-1085.7,0.00028493,2]
[312379277,1705846249215,-500.0,0.00028493,2]
[312379278,1705846249226,-500.0,0.00028493,2]
[312379279,1705846249237,-1300.84,0.00028493,2]
[312379280,1705846249247,-500.0,0.00028493,2]
[312379281,1705846249256,-1212.07,0.00028493,2]
[312379282,1705846249266,-14451.48,0.00028493,2]
[312379283,1705846249277,-8985.4,0.00028493,2]
[312379284,1705846249289,-3009.28,0.00028493,2]
[312379285,1705846249298,-992.85,0.00028493,2]
[312379286,1705846249310,-8616.53,0.00028493,2]
[312379287,1705846249320,-500.0,0.00028493,2]
[312379288,1705846249330,-1249.83,0.00028493,2]
[312379289,1705846249340,-500.0,0.00028493,2]
[312379290,1705846249349,-2116.25,0.00028493,2]
[312379291,1705846249359,-4039.22,0.00028493,2]
[312379292,1705846249369,-5986.27,0.00028493,2]
[312379293,1705846249379,-571.94,0.00028493,2]
[312379294,1705846249388,-500.0,0.00028493,2]
[312379295,1705846249398,-8011.52,0.00028493,2]
[312379296,1705846249408,-1832.27,0.00028493,2]
[312379297,1705846249418,-500.0,0.00028493,2]
[312379298,1705846249427,-2078.04,0.00028493,2]
[312379299,1705846249437,-1508.03,0.00028493,2]
[312379300,1705846249446,-500.0,0.00028493,2]
[312379301,1705846249456,-500.0,0.00028493,2]
[312379302,1705846249466,-618.48,0.00028493,2]
[312379303,1705846249475,-500.0,0.00028493,2]
[312379304,1705846249484,-500.0,0.00028493,2]
[312379305,1705846249494,-2722.27,0.00028493,2]
[312379306,1705846249503,-1106.82,0.00028493,2]
[312379307,1705846249512,-620.56069287,0.00028501,2]